[Event "Live Chess"]
[Site "Chess.com"]
[Date "2023.05.21"]
[Round "-"]
[White "domrobson"]
[Black "gmnorfolk"]
[Result "0-1"]
[WhiteElo "1756"]
[BlackElo "2139"]
[TimeControl "300"]
[EndTime "7:08:58 PDT"]
[Termination "gmnorfolk won by resignation"]

1. d4 {[%clk 0:04:58.9]} 1... Nf6 {[%clk 0:04:58.3]} 2. c3 {[%clk 0:04:58.3]}
2... d6 {[%clk 0:04:56.9]} 3. b3 {[%clk 0:04:57.6]} 3... e5 {[%clk 0:04:56.4]}
4. b4 {[%clk 0:04:57.5]} 4... a5 {[%clk 0:04:53.3]} 5. c4 {[%clk 0:04:57.4]}
5... axb4 {[%clk 0:04:52.3]} 6. c5 {[%clk 0:04:57.3]} 6... exd4 {[%clk
0:04:51.3]} 7. c6 {[%clk 0:04:55.1]} 7... Nxc6 {[%clk 0:04:49.8]} 8. e3 {[%clk
0:04:55]} 8... dxe3 {[%clk 0:04:47.7]} 9. f3 {[%clk 0:04:54.9]} 9... g6 {[%clk
0:04:44.8]} 10. g3 {[%clk 0:04:54.8]} 10... Bg7 {[%clk 0:04:43.8]} 11. f4 {[%clk
0:04:52.9]} 11... O-O {[%clk 0:04:43.1]} 0-1

[Event "Live Chess"]
[Site "Chess.com"]
[Date "2023.05.21"]
[Round "-"]
[White "matt1979"]
[Black "NateSolon"]
[Result "0-1"]
[WhiteElo "1552"]
[BlackElo "2642"]
[TimeControl "300"]
[EndTime "7:09:06 PDT"]
[Termination "NateSolon won by checkmate"]

1. f4 {[%clk 0:04:57.8]} 1... Nh6 {[%clk 0:04:58.3]} 2. Nf3 {[%clk 0:04:54.8]}
2... d5 {[%clk 0:04:56.8]} 3. e3 {[%clk 0:04:53.3]} 3... Bg4 {[%clk 0:04:54.5]}
4. Be2 {[%clk 0:04:49.8]} 4... e6 {[%clk 0:04:53.5]} 5. O-O {[%clk 0:04:47.2]}
5... c5 {[%clk 0:04:51.7]} 6. b3 {[%clk 0:04:45.6]} 6... Bxf3 {[%clk 0:04:45.7]}
7. Bxf3 {[%clk 0:04:44.3]} 7... Qf6 {[%clk 0:04:44.7]} 8. c3 {[%clk 0:04:35.7]}
8... Nc6 {[%clk 0:04:42.7]} 9. Bb2 {[%clk 0:04:29.7]} 9... Nf5 {[%clk
0:04:41.3]} 10. Qc2 {[%clk 0:04:24.7]} 10... g6 {[%clk 0:04:25.9]} 11. c4 {[%clk
0:04:21.7]} 11... d4 {[%clk 0:04:25.3]} 12. Bxc6+ {[%clk 0:04:18.4]} 12... bxc6
{[%clk 0:04:25.2]} 13. e4 {[%clk 0:04:11.2]} 13... Ne7 {[%clk 0:04:16.8]} 14. d3
{[%clk 0:04:05.4]} 14... Bh6 {[%clk 0:04:10.8]} 15. g3 {[%clk 0:04:00.2]} 15...
e5 {[%clk 0:04:01.7]} 16. f5 {[%clk 0:03:53.3]} 16... Be3+ {[%clk 0:03:45.6]}
17. Kh1 {[%clk 0:03:50.1]} 17... h5 {[%clk 0:03:33.9]} 18. Nd2 {[%clk
0:03:43.7]} 18... g5 {[%clk 0:03:31.9]} 19. Ba3 {[%clk 0:03:27.8]} 19... g4
{[%clk 0:03:31]} 20. Bxc5 {[%clk 0:03:23.4]} 20... h4 {[%clk 0:03:30]} 21. Bxe7
{[%clk 0:03:01]} 21... hxg3 {[%clk 0:03:26.3]} 22. h3 {[%clk 0:02:49.5]} 22...
Kxe7 {[%clk 0:03:15.2]} 23. Qd1 {[%clk 0:02:34.7]} 23... Rxh3+ {[%clk
0:03:12.4]} 24. Kg2 {[%clk 0:02:31.1]} 24... Rh2+ {[%clk 0:03:12.3]} 25. Kxg3
{[%clk 0:02:29.7]} 25... Qh4# {[%clk 0:03:12.2]} 0-1

[Event "Live Chess"]
[Site "Chess.com"]
[Date "2023.05.21"]
[Round "-"]
[White "manthanit"]
[Black "Leonid_Starozhilov"]
[Result "0-1"]
[WhiteElo "1081"]
[BlackElo "2624"]
[TimeControl "300"]
[EndTime "7:09:08 PDT"]
[Termination "Leonid_Starozhilov won by resignation"]

1. e4 {[%clk 0:04:55.7]} 1... Nc6 {[%clk 0:04:57]} 2. Nf3 {[%clk 0:04:54.5]}
2... d6 {[%clk 0:04:54.2]} 3. Bc4 {[%clk 0:04:53.1]} 3... e6 {[%clk 0:04:42.4]}
4. h3 {[%clk 0:04:50.9]} 4... d5 {[%clk 0:04:23.1]} 5. exd5 {[%clk 0:04:49.3]}
5... exd5 {[%clk 0:04:22.3]} 6. Bb5 {[%clk 0:04:48.4]} 6... Bd6 {[%clk
0:04:21.1]} 7. d4 {[%clk 0:04:43.4]} 7... Ne7 {[%clk 0:04:19.5]} 8. c4 {[%clk
0:04:34.9]} 8... dxc4 {[%clk 0:04:17.6]} 9. Bxc4 {[%clk 0:04:34]} 9... O-O
{[%clk 0:04:16.2]} 10. O-O {[%clk 0:04:31.3]} 10... h6 {[%clk 0:04:13.3]} 11.
Be3 {[%clk 0:04:13.9]} 11... Nf5 {[%clk 0:04:10.1]} 12. Nc3 {[%clk 0:03:55.2]}
12... a6 {[%clk 0:03:42.3]} 13. a4 {[%clk 0:03:51.4]} 13... Bd7 {[%clk
0:03:39.2]} 14. Ne4 {[%clk 0:03:35.5]} 14... Re8 {[%clk 0:03:35.3]} 15. Nxd6
{[%clk 0:03:30]} 15... Nxd6 {[%clk 0:03:27.9]} 16. Bb3 {[%clk 0:03:24.2]} 16...
Na5 {[%clk 0:03:10.9]} 17. Ba2 {[%clk 0:03:21.2]} 17... Nac4 {[%clk 0:02:53.6]}
18. Bxc4 {[%clk 0:03:13.8]} 18... Nxc4 {[%clk 0:02:51.2]} 19. b3 {[%clk
0:03:08.8]} 19... Nxe3 {[%clk 0:02:49.4]} 20. fxe3 {[%clk 0:03:07.6]} 20... Rxe3
{[%clk 0:02:48.4]} 21. Qd2 {[%clk 0:03:05.8]} 21... Rxb3 {[%clk 0:02:43.7]} 22.
Rab1 {[%clk 0:03:05.2]} 22... Rxb1 {[%clk 0:02:42.3]} 23. Rxb1 {[%clk
0:03:03.8]} 23... b5 {[%clk 0:02:41.5]} 24. axb5 {[%clk 0:03:02.7]} 24... axb5
{[%clk 0:02:40.8]} 25. Ne5 {[%clk 0:02:59.9]} 25... Be8 {[%clk 0:02:39.6]} 26.
Qf2 {[%clk 0:02:46.2]} 26... Qd5 {[%clk 0:02:37]} 27. Rc1 {[%clk 0:02:36.3]}
27... b4 {[%clk 0:02:30.9]} 28. Rxc7 {[%clk 0:02:33.5]} 28... b3 {[%clk
0:02:29.8]} 29. Nxf7 {[%clk 0:02:13.7]} 29... Bxf7 {[%clk 0:02:26.2]} 30. Rxf7
{[%clk 0:02:12.3]} 30... Qxf7 {[%clk 0:02:24.1]} 31. Qxf7+ {[%clk 0:02:09.1]}
0-1

[Event "Live Chess"]
[Site "Chess.com"]
[Date "2023.05.21"]
[Round "-"]
[White "ClassyChameleon"]
[Black "BillythekidFellowes"]
[Result "0-1"]
[WhiteElo "1083"]
[BlackElo "2089"]
[TimeControl "300"]
[EndTime "7:09:09 PDT"]
[Termination "BillythekidFellowes won by checkmate"]

1. e4 {[%clk 0:04:57.2]} 1... Nc6 {[%clk 0:04:55.3]} 2. Nf3 {[%clk 0:04:54.6]}
2... d6 {[%clk 0:04:53.2]} 3. d4 {[%clk 0:04:49.1]} 3... Nf6 {[%clk 0:04:52.5]}
4. Nc3 {[%clk 0:04:47.7]} 4... Bg4 {[%clk 0:04:49.8]} 5. Be2 {[%clk 0:04:46.3]}
5... g6 {[%clk 0:04:43.7]} 6. O-O {[%clk 0:04:44.4]} 6... Bg7 {[%clk 0:04:43]}
7. d5 {[%clk 0:04:38.6]} 7... Nb8 {[%clk 0:04:41.8]} 8. Ng5 {[%clk 0:04:35.1]}
8... Bxe2 {[%clk 0:04:38.2]} 9. Qxe2 {[%clk 0:04:34.1]} 9... h6 {[%clk
0:04:37.6]} 10. Nh3 {[%clk 0:04:31.6]} 10... Nbd7 {[%clk 0:04:36.8]} 11. Nf4
{[%clk 0:04:30.5]} 11... O-O {[%clk 0:04:35.6]} 12. b4 {[%clk 0:04:23.5]} 12...
Nxe4 {[%clk 0:04:33.1]} 13. Qxe4 {[%clk 0:04:19]} 13... Bxc3 {[%clk 0:04:32.2]}
14. Rb1 {[%clk 0:04:16.1]} 14... Nf6 {[%clk 0:04:30.4]} 15. Qc4 {[%clk
0:04:05.1]} 15... Be5 {[%clk 0:04:27.9]} 16. Nd3 {[%clk 0:04:01.8]} 16... Nd7
{[%clk 0:04:15.8]} 17. Bxh6 {[%clk 0:03:59.8]} 17... Bg7 {[%clk 0:04:14.4]} 18.
Bxg7 {[%clk 0:03:58.5]} 18... Kxg7 {[%clk 0:04:14.3]} 19. Nf4 {[%clk 0:03:57.3]}
19... Ne5 {[%clk 0:04:11.8]} 20. h4 {[%clk 0:03:52.9]} 20... Rh8 {[%clk
0:04:08.4]} 21. g3 {[%clk 0:03:47.7]} 21... Qd7 {[%clk 0:04:07.2]} 22. Qd4
{[%clk 0:03:43.2]} 22... f6 {[%clk 0:04:05]} 23. Ne6+ {[%clk 0:03:39.9]} 23...
Kf7 {[%clk 0:04:04.2]} 24. f4 {[%clk 0:03:29.1]} 24... Ng4 {[%clk 0:03:58.9]}
25. f5 {[%clk 0:03:24]} 25... gxf5 {[%clk 0:03:41.7]} 26. Rxf5 {[%clk 0:03:22]}
26... Rag8 {[%clk 0:03:40.2]} 27. Rbf1 {[%clk 0:03:17]} 27... Ne5 {[%clk
0:03:36]} 28. Rg5 {[%clk 0:03:12.2]} 28... Rxg5 {[%clk 0:03:30.5]} 29. hxg5
{[%clk 0:03:10.9]} 29... c5 {[%clk 0:03:21.5]} 30. bxc5 {[%clk 0:03:06.2]} 30...
Qb5 {[%clk 0:03:13.2]} 31. Nd8+ {[%clk 0:02:42.4]} 31... Ke8 {[%clk 0:03:02.4]}
32. gxf6 {[%clk 0:02:22.5]} 32... Rh1+ {[%clk 0:02:59.7]} 33. Kg2 {[%clk
0:02:20.1]} 33... Qxf1# {[%clk 0:02:59.6]} 0-1

[Event "Live Chess"]
[Site "Chess.com"]
[Date "2023.05.21"]
[Round "-"]
[White "Crowded_House"]
[Black "EdenHazard8"]
[Result "1/2-1/2"]
[WhiteElo "1611"]
[BlackElo "1957"]
[TimeControl "300"]
[EndTime "7:09:14 PDT"]
[Termination "Game drawn by repetition"]

1. d4 {[%clk 0:04:58.4]} 1... e5 {[%clk 0:04:59.3]} 2. dxe5 {[%clk 0:04:56.3]}
2... Nc6 {[%clk 0:04:58.7]} 3. Nf3 {[%clk 0:04:55.3]} 3... Qe7 {[%clk
0:04:55.6]} 4. c3 {[%clk 0:04:54.6]} 4... Nxe5 {[%clk 0:04:52.3]} 5. Nbd2 {[%clk
0:04:53.1]} 5... Nxf3+ {[%clk 0:04:46.2]} 6. Nxf3 {[%clk 0:04:51.6]} 6... Nf6
{[%clk 0:04:44.4]} 7. e3 {[%clk 0:04:47.7]} 7... d5 {[%clk 0:04:42.1]} 8. Bd3
{[%clk 0:04:44.6]} 8... Bg4 {[%clk 0:04:35.9]} 9. O-O {[%clk 0:04:39.5]} 9... c6
{[%clk 0:04:23.8]} 10. h3 {[%clk 0:04:38.7]} 10... Bh5 {[%clk 0:04:22.7]} 11.
Be2 {[%clk 0:04:29.2]} 11... Qc7 {[%clk 0:04:17]} 12. b3 {[%clk 0:04:23.9]}
12... Ne4 {[%clk 0:04:13.1]} 13. Bb2 {[%clk 0:04:18.5]} 13... Bd6 {[%clk
0:04:11.6]} 14. Nd2 {[%clk 0:04:12.1]} 14... Bxe2 {[%clk 0:04:11.5]} 15. Qxe2
{[%clk 0:04:10.8]} 15... f5 {[%clk 0:04:08.4]} 16. c4 {[%clk 0:04:03.2]} 16...
Be5 {[%clk 0:04:05.7]} 17. Bxe5 {[%clk 0:03:56.3]} 17... Qxe5 {[%clk 0:04:05.6]}
18. cxd5 {[%clk 0:03:53.5]} 18... O-O {[%clk 0:03:55.1]} 19. Nxe4 {[%clk
0:03:47.3]} 19... fxe4 {[%clk 0:03:52.9]} 20. dxc6 {[%clk 0:03:46]} 20... bxc6
{[%clk 0:03:52.8]} 21. Qc4+ {[%clk 0:03:41.2]} 21... Kh8 {[%clk 0:03:51.3]} 22.
Rac1 {[%clk 0:03:37.6]} 22... Rf6 {[%clk 0:03:49.6]} 23. Qc5 {[%clk 0:03:29.7]}
23... Qe6 {[%clk 0:03:46.5]} 24. Rc2 {[%clk 0:03:22.3]} 24... Rg6 {[%clk
0:03:44.6]} 25. Kh1 {[%clk 0:03:18.3]} 25... Rf8 {[%clk 0:03:41.6]} 26. Qc4
{[%clk 0:03:11.6]} 26... Qd7 {[%clk 0:03:35.6]} 27. Qxe4 {[%clk 0:02:55.8]}
27... Re6 {[%clk 0:03:25.4]} 28. Qg4 {[%clk 0:02:46.2]} 28... Qe7 {[%clk
0:03:20]} 29. Rfc1 {[%clk 0:02:40.1]} 29... Rg6 {[%clk 0:03:18]} 30. Qc4 {[%clk
0:02:29.9]} 30... Qd7 {[%clk 0:03:11.5]} 31. Qe2 {[%clk 0:02:22.9]} 31... Rf5
{[%clk 0:02:59.8]} 32. Rd2 {[%clk 0:02:20.1]} 32... Qc8 {[%clk 0:02:57.2]} 33.
Rcd1 {[%clk 0:02:17.3]} 33... Rf8 {[%clk 0:02:51.2]} 34. Rd6 {[%clk 0:02:11.5]}
34... Rxd6 {[%clk 0:02:47.2]} 35. Rxd6 {[%clk 0:02:10.4]} 35... Qc7 {[%clk
0:02:44.8]} 36. Rd2 {[%clk 0:02:02.3]} 36... Qe5 {[%clk 0:02:41.1]} 37. Qd1
{[%clk 0:01:56.9]} 37... h6 {[%clk 0:02:32.7]} 38. Rd8 {[%clk 0:01:55.3]} 38...
Qf6 {[%clk 0:02:30.6]} 39. Rxf8+ {[%clk 0:01:52.2]} 39... Qxf8 {[%clk
0:02:30.5]} 40. Kg1 {[%clk 0:01:44.2]} 40... Qa3 {[%clk 0:02:22.5]} 41. Qd2
{[%clk 0:01:40]} 41... Qc5 {[%clk 0:02:15.7]} 42. Qd8+ {[%clk 0:01:29.8]} 42...
Kh7 {[%clk 0:02:13.9]} 43. Qd3+ {[%clk 0:01:29.2]} 43... Kh8 {[%clk 0:02:12.3]}
44. Qd8+ {[%clk 0:01:28.8]} 44... Kh7 {[%clk 0:02:10.6]} 45. Qd3+ {[%clk
0:01:28.4]} 45... Kh8 {[%clk 0:02:09.1]} 46. Qd8+ {[%clk 0:01:27.6]} 1/2-1/2

[Event "Live Chess"]
[Site "Chess.com"]
[Date "2023.05.21"]
[Round "-"]
[White "chessfiction"]
[Black "Ra2orLeaf"]
[Result "1-0"]
[WhiteElo "2307"]
[BlackElo "1130"]
[TimeControl "300"]
[EndTime "7:09:23 PDT"]
[Termination "chessfiction won by resignation"]

1. e4 {[%clk 0:04:57.2]} 1... c5 {[%clk 0:04:56.6]} 2. d4 {[%clk 0:04:56.5]}
2... cxd4 {[%clk 0:04:53.7]} 3. c3 {[%clk 0:04:56]} 3... d3 {[%clk 0:04:51.9]}
4. Bg5 {[%clk 0:04:54.1]} 4... Nc6 {[%clk 0:04:51.8]} 5. c4 {[%clk 0:04:52.7]}
5... d6 {[%clk 0:04:40.5]} 6. Nc3 {[%clk 0:04:49.9]} 6... h6 {[%clk 0:04:31.7]}
7. Bh4 {[%clk 0:04:43.3]} 7... Nf6 {[%clk 0:04:12.9]} 8. Bxd3 {[%clk 0:04:39.4]}
8... Bg4 {[%clk 0:04:04.7]} 9. f3 {[%clk 0:04:36.8]} 9... Bh5 {[%clk 0:04:03.7]}
10. Nge2 {[%clk 0:04:35.7]} 10... e5 {[%clk 0:03:53.9]} 11. Qb3 {[%clk
0:04:27.6]} 11... b6 {[%clk 0:03:30.4]} 12. c5 {[%clk 0:04:20.2]} 12... Be7
{[%clk 0:03:04.8]} 13. Bb5 {[%clk 0:04:16.1]} 13... Rc8 {[%clk 0:02:45.5]} 14.
Qa4 {[%clk 0:04:13.9]} 14... Qc7 {[%clk 0:02:34.2]} 15. Bxf6 {[%clk 0:04:11.4]}
15... Bxf6 {[%clk 0:02:33.2]} 16. Nd5 {[%clk 0:04:10.8]} 16... Qb7 {[%clk
0:02:19.5]} 17. Nxf6+ {[%clk 0:04:03.7]} 17... gxf6 {[%clk 0:02:19.4]} 18. cxd6
{[%clk 0:04:02.4]} 18... O-O {[%clk 0:02:09]} 19. Ba6 {[%clk 0:03:59.8]} 19...
Qd7 {[%clk 0:02:03.6]} 20. Bxc8 {[%clk 0:03:57.6]} 20... Rxc8 {[%clk 0:02:03.5]}
21. Rc1 {[%clk 0:03:55.3]} 21... Qxd6 {[%clk 0:01:56.1]} 22. O-O {[%clk
0:03:42]} 22... Kh7 {[%clk 0:01:34.2]} 23. Rfd1 {[%clk 0:03:25]} 23... Qb8
{[%clk 0:01:28.9]} 24. Rxc6 {[%clk 0:03:22.7]} 24... Rg8 {[%clk 0:01:22.8]} 25.
Rxf6 {[%clk 0:03:14.5]} 25... Bxf3 {[%clk 0:01:15.7]} 26. Rxf7+ {[%clk
0:03:12.2]} 26... Kh8 {[%clk 0:01:10.8]} 27. Rxf3 {[%clk 0:03:07]} 27... Qc7
{[%clk 0:00:59.1]} 28. Qd7 {[%clk 0:02:52.8]} 28... Qc2 {[%clk 0:00:52.8]} 29.
Qd2 {[%clk 0:02:44.8]} 29... Qxe4 {[%clk 0:00:47.8]} 30. Qxh6+ {[%clk 0:02:36]}
30... Qh7 {[%clk 0:00:47.4]} 31. Qxh7+ {[%clk 0:02:33.6]} 31... Kxh7 {[%clk
0:00:47.3]} 1-0

[Event "Live Chess"]
[Site "Chess.com"]
[Date "2023.05.21"]
[Round "-"]
[White "zdanevych"]
[Black "onemoretime1975"]
[Result "0-1"]
[WhiteElo "1500"]
[BlackElo "1841"]
[TimeControl "300"]
[EndTime "7:09:33 PDT"]
[Termination "onemoretime1975 won by resignation"]

1. d4 {[%clk 0:04:59.2]} 1... d5 {[%clk 0:04:58.3]} 2. c4 {[%clk 0:04:57.8]}
2... e6 {[%clk 0:04:55.9]} 3. Nc3 {[%clk 0:04:55.8]} 3... Nf6 {[%clk 0:04:54.8]}
4. cxd5 {[%clk 0:04:54.8]} 4... exd5 {[%clk 0:04:53.7]} 5. Nf3 {[%clk
0:04:52.8]} 5... c6 {[%clk 0:04:51.8]} 6. h3 {[%clk 0:04:52.2]} 6... Bf5 {[%clk
0:04:50.1]} 7. Bg5 {[%clk 0:04:51.2]} 7... Nbd7 {[%clk 0:04:47.4]} 8. e3 {[%clk
0:04:50.6]} 8... h6 {[%clk 0:04:45.7]} 9. Bh4 {[%clk 0:04:49.5]} 9... Be7 {[%clk
0:04:42.1]} 10. Bd3 {[%clk 0:04:48.1]} 10... Bxd3 {[%clk 0:04:38.4]} 11. Qxd3
{[%clk 0:04:48]} 11... Ne4 {[%clk 0:04:36.8]} 12. Bxe7 {[%clk 0:04:45.5]} 12...
Qxe7 {[%clk 0:04:34.7]} 13. O-O {[%clk 0:04:44.2]} 13... Ndf6 {[%clk 0:04:32.7]}
14. Nd2 {[%clk 0:04:42.3]} 14... O-O {[%clk 0:04:30]} 15. Rac1 {[%clk 0:04:41]}
15... Rfe8 {[%clk 0:04:27.2]} 16. f3 {[%clk 0:04:37.1]} 16... Nxd2 {[%clk
0:04:21.9]} 17. Qxd2 {[%clk 0:04:34.2]} 17... Qxe3+ {[%clk 0:04:20.5]} 18. Qxe3
{[%clk 0:04:34.1]} 18... Rxe3 {[%clk 0:04:18.3]} 19. Rce1 {[%clk 0:04:32.2]}
19... Rae8 {[%clk 0:04:15.9]} 20. Kf2 {[%clk 0:04:30.6]} 20... Rxe1 {[%clk
0:04:13.3]} 21. Rxe1 {[%clk 0:04:30.3]} 21... Rxe1 {[%clk 0:04:10.8]} 22. Kxe1
{[%clk 0:04:30.2]} 22... Kf8 {[%clk 0:04:06.1]} 23. Na4 {[%clk 0:04:27]} 23...
Nd7 {[%clk 0:04:04.1]} 24. Kd2 {[%clk 0:04:25]} 24... Ke7 {[%clk 0:04:03]} 25.
Ke3 {[%clk 0:04:24]} 25... Kd6 {[%clk 0:04:00.9]} 26. Nc3 {[%clk 0:04:23.3]}
26... a6 {[%clk 0:03:54.7]} 27. Kf4 {[%clk 0:04:18.7]} 27... c5 {[%clk
0:03:51.5]} 28. dxc5+ {[%clk 0:04:17.3]} 28... Nxc5 {[%clk 0:03:50.1]} 29. Ke3
{[%clk 0:04:13.5]} 29... Ke5 {[%clk 0:03:44.8]} 30. Ne2 {[%clk 0:04:09.2]} 30...
Ne6 {[%clk 0:03:34]} 31. g3 {[%clk 0:04:04]} 31... g5 {[%clk 0:03:31.5]} 32. f4+
{[%clk 0:03:57.8]} 32... gxf4+ {[%clk 0:03:29.6]} 33. gxf4+ {[%clk 0:03:57.3]}
33... Kf5 {[%clk 0:03:09.5]} 34. Ng3+ {[%clk 0:03:50.7]} 34... Kf6 {[%clk
0:03:06.2]} 35. Nh5+ {[%clk 0:03:42.9]} 35... Kg6 {[%clk 0:02:58.7]} 36. Ng3
{[%clk 0:03:38.9]} 36... Kf6 {[%clk 0:02:56.8]} 37. Nh5+ {[%clk 0:03:37.7]}
37... Ke7 {[%clk 0:02:51.5]} 38. f5 {[%clk 0:03:31]} 38... Ng5 {[%clk
0:02:48.4]} 39. h4 {[%clk 0:03:27.8]} 39... Ne4 {[%clk 0:02:41]} 40. Kd4 {[%clk
0:03:23.2]} 40... Nf6 {[%clk 0:02:38.2]} 41. Nf4 {[%clk 0:03:18.5]} 41... h5
{[%clk 0:02:34.6]} 42. Nxd5+ {[%clk 0:03:16.2]} 42... Nxd5 {[%clk 0:02:33.3]}
43. Kxd5 {[%clk 0:03:16.1]} 43... Kf6 {[%clk 0:02:32.1]} 44. Ke4 {[%clk
0:03:12.9]} 44... Ke7 {[%clk 0:02:21.9]} 45. Ke5 {[%clk 0:03:11.5]} 45... f6+
{[%clk 0:02:20.9]} 46. Ke4 {[%clk 0:03:08]} 46... Kd6 {[%clk 0:02:17.2]} 47. Kd4
{[%clk 0:03:07.3]} 47... Kc6 {[%clk 0:02:15.7]} 48. Kc4 {[%clk 0:03:06.4]} 48...
b5+ {[%clk 0:02:13.2]} 49. Kd3 {[%clk 0:03:01.7]} 49... Kd5 {[%clk 0:02:11.5]}
50. Ke3 {[%clk 0:02:50.5]} 50... Ke5 {[%clk 0:02:10.4]} 51. b3 {[%clk
0:02:48.4]} 51... Kxf5 {[%clk 0:02:09]} 52. Kf3 {[%clk 0:02:47.5]} 52... Ke5
{[%clk 0:02:07.1]} 53. Ke3 {[%clk 0:02:46.8]} 53... f5 {[%clk 0:02:06]} 54. a3
{[%clk 0:02:45.1]} 54... f4+ {[%clk 0:02:05]} 55. Ke2 {[%clk 0:02:43.5]} 55...
Ke4 {[%clk 0:02:03.9]} 56. Kf1 {[%clk 0:02:42.7]} 56... f3 {[%clk 0:02:02.9]}
57. Ke1 {[%clk 0:02:41.2]} 57... Kf4 {[%clk 0:02:01]} 58. Kf2 {[%clk 0:02:40.3]}
58... Kg4 {[%clk 0:01:59.2]} 59. Kf1 {[%clk 0:02:38]} 59... Kxh4 {[%clk
0:01:57.9]} 60. Kf2 {[%clk 0:02:35.7]} 60... Kg4 {[%clk 0:01:57.4]} 61. Kg1
{[%clk 0:02:34.4]} 61... Kg3 {[%clk 0:01:56.2]} 62. Kf1 {[%clk 0:02:33.8]} 62...
f2 {[%clk 0:01:54.8]} 0-1

[Event "Live Chess"]
[Site "Chess.com"]
[Date "2023.05.21"]
[Round "-"]
[White "Doge_Dandolo"]
[Black "jumush"]
[Result "1-0"]
[WhiteElo "1887"]
[BlackElo "1721"]
[TimeControl "300"]
[EndTime "7:09:35 PDT"]
[Termination "Doge_Dandolo won by resignation"]

1. Nf3 {[%clk 0:04:57.2]} 1... d5 {[%clk 0:04:57.4]} 2. c4 {[%clk 0:04:56.5]}
2... d4 {[%clk 0:04:55.2]} 3. b4 {[%clk 0:04:54.5]} 3... g6 {[%clk 0:04:41.5]}
4. g3 {[%clk 0:04:52.2]} 4... Bg7 {[%clk 0:04:39.4]} 5. d3 {[%clk 0:04:51.3]}
5... Nc6 {[%clk 0:04:32.8]} 6. a3 {[%clk 0:04:46.2]} 6... a5 {[%clk 0:04:29.8]}
7. b5 {[%clk 0:04:42.9]} 7... Ne5 {[%clk 0:04:27.7]} 8. Nbd2 {[%clk 0:04:39.4]}
8... Nxf3+ {[%clk 0:04:22.1]} 9. Nxf3 {[%clk 0:04:37.8]} 9... b6 {[%clk
0:04:20.8]} 10. Bg2 {[%clk 0:04:36.1]} 10... Rb8 {[%clk 0:04:13.5]} 11. O-O
{[%clk 0:04:33.8]} 11... Bb7 {[%clk 0:04:11.6]} 12. Ra2 {[%clk 0:04:28.4]} 12...
h5 {[%clk 0:04:09.2]} 13. e3 {[%clk 0:04:26.6]} 13... dxe3 {[%clk 0:04:06.6]}
14. Bxe3 {[%clk 0:04:23.6]} 14... Nh6 {[%clk 0:04:02.5]} 15. Re1 {[%clk
0:04:11.2]} 15... O-O {[%clk 0:03:59.4]} 16. Qc1 {[%clk 0:04:02]} 16... Nf5
{[%clk 0:03:55.7]} 17. Bg5 {[%clk 0:03:58.5]} 17... f6 {[%clk 0:03:53.8]} 18.
Bf4 {[%clk 0:03:48.8]} 18... e5 {[%clk 0:03:51.1]} 19. Be3 {[%clk 0:03:46.4]}
19... Qxd3 {[%clk 0:03:48.4]} 20. Rd2 {[%clk 0:03:41.4]} 20... Qb3 {[%clk
0:03:45.2]} 21. Red1 {[%clk 0:03:38.1]} 21... Nxe3 {[%clk 0:03:25.2]} 22. Rd3
{[%clk 0:03:32.9]} 22... Nxd1 {[%clk 0:03:22.2]} 23. Rxb3 {[%clk 0:03:28.1]}
23... Rbd8 {[%clk 0:03:15.4]} 24. Nd2 {[%clk 0:03:20]} 24... Bxg2 {[%clk
0:03:12.9]} 25. Kxg2 {[%clk 0:03:18]} 25... Bh6 {[%clk 0:03:11.4]} 26. Qxd1
{[%clk 0:03:13.5]} 26... Rxd2 {[%clk 0:03:08.9]} 27. Qf3 {[%clk 0:03:09]} 27...
Kf7 {[%clk 0:03:05.4]} 28. Qc6 {[%clk 0:03:06.4]} 28... Rd7 {[%clk 0:03:03.4]}
29. Qxd7+ {[%clk 0:03:04.7]} 1-0